bitfinex/quotes_BTCUSD_20260215
["timestamp","ask_amount","ask_price","bid_price","bid_amount"]
[1771141697954,0.07067454,70747.0,70736.0,0.07068474]
[1771141698169,0.07067454,70747.0,70735.0,0.07068609]
[1771141698375,0.07067542,70746.0,70735.0,0.07068609]
[1771141698583,0.07067355,70748.0,70735.0,0.07068609]
[1771141698584,0.07067464,70747.0,70735.0,0.07068609]
[1771141698935,0.07067464,70747.0,70734.0,0.0944616]
[1771141698936,0.07067464,70747.0,70736.0,0.07068532]
[1771141699135,0.0706756,70746.0,70735.0,0.07068596]
[1771141699962,0.37606165,70746.0,70733.0,0.00012988]
[1771141700169,0.02475669,70742.0,70733.0,0.00012988]
[1771141700393,0.02475669,70742.0,70735.0,0.00022]
[1771141701424,0.02475669,70742.0,70735.0,0.07090441]
[1771141702447,0.02475669,70742.0,70735.0,0.00022]
[1771141703346,0.02475669,70742.0,70740.0,0.00012]
[1771141703548,0.02475669,70742.0,70724.0,0.21369706]
[1771141703748,0.00012,70740.0,70732.0,0.07068927]
[1771141704115,0.00012,70740.0,70731.0,0.07069001]
[1771141704454,0.00012,70740.0,70725.0,0.33844]
[1771141704589,0.00012,70740.0,70734.0,0.07068643]
[1771141705019,0.00012,70740.0,70733.0,0.0706883]
[1771141705439,0.00012,70740.0,70729.0,0.07069142]
[1771141705875,0.07080137,70740.0,70729.0,0.07069142]
[1771141706029,0.02499999,70739.0,70729.0,0.07069142]
[1771141706659,0.02499999,70739.0,70730.0,0.07069127]
[1771141707281,0.02499999,70739.0,70735.0,6.92e-05]
[1771141707498,0.37606165,70739.0,70729.0,0.07069142]
[1771141707704,0.02511999,70740.0,70729.0,0.07069142]
[1771141707919,0.02511999,70740.0,70727.0,0.00022]
[1771141708131,0.00012,70740.0,70728.0,0.37322237]
[1771141708540,0.00012,70740.0,70729.0,0.28276605]
[1771141708922,0.00012,70740.0,70728.0,0.37322237]
[1771141709123,0.00012,70740.0,70730.0,0.07069101]
[1771141709468,0.07080156,70740.0,70729.0,0.07069156]
[1771141709590,0.00012,70740.0,70730.0,0.07069124]
[1771141710224,0.07080139,70740.0,70730.0,0.07069124]
[1771141710927,0.00012,70740.0,70730.0,0.07069124]
[1771141711793,0.0727757,70741.0,70730.0,0.07069124]
[1771141712914,0.07068139,70740.0,70730.0,0.07069124]
[1771141713261,0.07277575,70741.0,70730.0,0.07069124]
[1771141713665,0.002095,70741.0,70729.0,0.07069219]
[1771141713870,0.09568323,70740.0,70730.0,0.00022]
[1771141714314,0.09568323,70740.0,70730.0,0.07091124]
[1771141714467,0.07272225,70741.0,70730.0,0.00022]
[1771141714679,0.07068259,70739.0,70730.0,0.00022]
[1771141714901,0.0001299,70742.0,70731.0,0.37322237]
[1771141715107,0.0001299,70742.0,70738.0,0.07038154]
[1771141715524,0.0001299,70742.0,70739.0,0.07068151]
[1771141715758,0.0002,70746.0,70741.0,0.07068021]
[1771141715923,0.0002213,70748.0,70739.0,0.44390473]
[1771141716125,0.02499999,70758.0,70745.0,0.07067632]
[1771141716388,0.07066643,70755.0,70745.0,0.07067632]
[1771141716739,0.07086554,70756.0,70745.0,0.07067604]
[1771141716940,0.0002,70756.0,70742.0,0.28271464]
[1771141717140,0.07086539,70756.0,70746.0,0.0706746]
[1771141717320,0.07086539,70756.0,70745.0,0.07067627]
[1771141717520,0.07066972,70752.0,70739.0,0.0001299]
[1771141717723,0.02499999,70755.0,70745.0,0.07067552]
[1771141717923,0.02499999,70755.0,70746.0,0.07067441]
[1771141718338,0.00012,70750.0,70746.0,0.07067441]
[1771141719988,0.00012,70750.0,70745.0,0.07067552]
[1771141720851,0.00012,70750.0,70747.0,0.07067423]
[1771141721257,0.00012,70750.0,70747.0,0.0703727]
[1771141721596,0.00012,70750.0,70747.0,0.07022193]
[1771141722530,0.00012,70750.0,70744.0,0.07067551]
[1771141722741,0.00012,70750.0,70746.0,0.07067529]
[1771141723512,0.00012,70750.0,70745.0,0.07067445]
[1771141723691,0.00012,70750.0,70746.0,0.07067511]
[1771141725490,0.00012,70750.0,70744.0,0.07067708]
[1771141726320,0.00012,70750.0,70745.0,0.07067637]
[1771141726660,0.00012,70750.0,70746.0,0.07067516]
[1771141726885,0.00012,70750.0,70740.0,0.70690284]
[1771141727089,0.00012,70750.0,70747.0,0.07067387]
[1771141728014,0.00012,70750.0,70747.0,0.07052308]
[1771141728395,0.00012,70750.0,70745.0,0.07067559]
[1771141728599,0.00012,70750.0,70742.0,0.07067909]
[1771141728975,0.00032,70750.0,70742.0,0.07067909]
[1771141729130,0.00032,70750.0,70744.0,0.07067736]
[1771141729554,0.00032,70750.0,70743.0,0.07067641]
[1771141729780,0.00032,70750.0,70744.0,0.07067737]
[1771141729971,0.00032,70750.0,70740.0,0.00012]
[1771141730154,0.00032,70750.0,70744.0,0.07067704]
[1771141730155,0.02531999,70750.0,70744.0,0.07067704]
[1771141730765,0.02531999,70750.0,70745.0,0.07067635]
[1771141730928,0.00032,70750.0,70740.0,0.00012]
[1771141731132,0.00032,70750.0,70746.0,0.07067483]
[1771141731981,0.00032,70750.0,70747.0,0.07067409]
[1771141732239,0.00032,70750.0,70748.0,0.07067248]
[1771141732749,0.00032,70750.0,70747.0,0.07067409]
[1771141733416,0.00032,70750.0,70748.0,0.07067321]
[1771141733592,0.00032,70750.0,70747.0,0.07067435]
[1771141733793,0.0002,70755.0,70747.0,0.07067435]
[1771141735167,0.0002,70750.0,70748.0,0.07067331]
[1771141736658,0.0002,70750.0,70747.0,0.07067408]
[1771141738393,0.0002,70750.0,70746.0,0.07067491]
[1771141739304,0.0002,70750.0,70747.0,0.07067384]
[1771141740060,0.0002,70750.0,70748.0,0.07067322]
[1771141740684,0.0002,70750.0,70747.0,0.070674]
[1771141741353,0.0002,70750.0,70740.0,0.29419518]
[1771141741565,0.0002,70750.0,70747.0,0.07067382]
[1771141742546,0.0002,70750.0,70746.0,0.07067497]
[1771141743631,0.0002,70750.0,70746.0,0.07052415]
[1771141743848,0.0002,70750.0,70747.0,0.07067408]
[1771141747150,0.0002,70750.0,70748.0,0.0706732]
[1771141747352,0.0002,70750.0,70747.0,0.07067409]
[1771141748315,0.0002,70750.0,70746.0,0.07040415]
[1771141750766,0.02499999,70749.0,70744.0,0.00022]
[1771141750986,0.02499999,70749.0,70745.0,0.07067588]
[1771141751379,0.02499999,70749.0,70745.0,0.07052508]
[1771141752488,0.01463999,70749.0,70745.0,0.07052508]
[1771141752684,0.01463999,70749.0,70744.0,0.07089649]
[1771141752896,0.01463999,70749.0,70745.0,0.07067623]
[1771141754724,0.01463999,70749.0,70744.0,0.07089649]
[1771141754945,0.01463999,70749.0,70744.0,0.00022]
[1771141755147,0.01463999,70749.0,70745.0,0.00022]
[1771141757651,0.01463999,70749.0,70746.0,0.07067476]
[1771141757854,0.01463999,70749.0,70746.0,0.07052396]
[1771141758692,0.01463999,70749.0,70745.0,0.07089627]
[1771141760330,0.01463999,70749.0,70746.0,0.0706752]
[1771141760539,0.0002,70750.0,70746.0,0.07067475]
[1771141760745,0.0002,70750.0,70745.0,0.00022]
[1771141761195,0.02370491,70750.0,70745.0,0.00022]
[1771141762029,0.02370491,70750.0,70746.0,0.07067537]
[1771141764294,0.0068034,70750.0,70745.0,0.07089613]
[1771141765207,4.935e-05,70749.0,70745.0,0.07089613]
[1771141766438,4.935e-05,70749.0,70746.0,0.07067458]
[1771141766650,4.935e-05,70749.0,70747.0,0.07067434]
[1771141766847,4.935e-05,70749.0,70746.0,0.07067517]
[1771141767057,4.935e-05,70749.0,70746.0,0.07055114]
[1771141767253,4.935e-05,70749.0,70746.0,0.07037359]
[1771141769445,4.935e-05,70749.0,70745.0,0.00022]
[1771141770835,4.935e-05,70749.0,70745.0,0.07089628]
[1771141772513,4.935e-05,70749.0,70745.0,0.00022]
[1771141774707,0.00024935,70749.0,70745.0,0.00022]
[1771141775696,0.00024935,70749.0,70745.0,0.07089627]
[1771141776117,0.00024935,70749.0,70745.0,0.00022]
[1771141778791,0.00024935,70749.0,70745.0,0.07089537]
[1771141778978,2.5e-07,70749.0,70745.0,0.07089537]
[1771141779188,2.5e-07,70749.0,70745.0,0.00022]
[1771141779972,2.5e-07,70749.0,70739.0,0.07081192]
[1771141780107,2.087e-05,70739.0,70738.0,0.00029]
[1771141780307,2.5e-07,70749.0,70735.0,0.07068549]
[1771141780308,0.34898366,70744.0,70735.0,0.07068549]
[1771141780548,0.02350491,70743.0,70735.0,0.07068549]
[1771141780708,0.02350491,70743.0,70736.0,0.07068455]
[1771141780912,2.5e-07,70749.0,70741.0,0.07068027]
[1771141780913,0.02350516,70749.0,70741.0,0.07068027]
[1771141781134,0.02354847,70749.0,70741.0,0.07068027]
[1771141781331,0.02354847,70749.0,70734.0,0.3387]
[1771141781332,4.356e-05,70749.0,70734.0,0.40938636]
[1771141781556,4.356e-05,70749.0,70743.0,0.0706782]
[1771141782012,4.356e-05,70749.0,70745.0,0.07089577]
[1771141782400,4.356e-05,70749.0,70746.0,0.07067508]
[1771141782639,4.356e-05,70749.0,70745.0,0.00022]
[1771141783670,4.356e-05,70749.0,70745.0,6.924e-05]
[1771141783876,4.356e-05,70749.0,70742.0,0.07067893]
[1771141784065,4.356e-05,70749.0,70741.0,0.07067985]
[1771141785604,4.356e-05,70749.0,70742.0,0.07067908]
[1771141786065,4.356e-05,70749.0,70737.0,0.00022]
[1771141786320,4.356e-05,70749.0,70742.0,0.07067869]
[1771141786517,4.356e-05,70749.0,70744.0,0.07067664]
[1771141786745,4.356e-05,70749.0,70742.0,0.07067869]
[1771141786923,4.356e-05,70749.0,70744.0,0.07067666]
[1771141787305,4.356e-05,70749.0,70745.0,0.09398669]
[1771141787471,4.356e-05,70749.0,70746.0,0.07067469]
[1771141788298,4.356e-05,70749.0,70743.0,0.07067752]
[1771141788496,4.356e-05,70749.0,70745.0,0.07067575]
[1771141789006,4.356e-05,70749.0,70746.0,0.07052435]
[1771141790022,4.356e-05,70749.0,70747.0,0.09398473]
[1771141790219,4.356e-05,70749.0,70746.0,0.07067526]
[1771141790427,4.356e-05,70749.0,70743.0,0.07067786]
[1771141790628,4.356e-05,70749.0,70742.0,0.00022]
[1771141790882,4.356e-05,70749.0,70742.0,0.07089906]
[1771141791087,4.356e-05,70749.0,70743.0,0.07067815]
[1771141792842,4.356e-05,70749.0,70742.0,0.00022]
[1771141793154,4.356e-05,70749.0,70744.0,0.07067711]
[1771141793566,4.356e-05,70749.0,70744.0,0.07067721]
[1771141793886,4.356e-05,70749.0,70745.0,0.07067566]
[1771141794054,4.356e-05,70749.0,70743.0,0.28271237]
[1771141794421,4.356e-05,70749.0,70746.0,0.07067454]
[1771141794577,4.356e-05,70749.0,70744.0,0.07067666]
[1771141794984,4.356e-05,70749.0,70744.0,0.07067653]
[1771141795717,4.356e-05,70749.0,70744.0,0.07067722]
[1771141795929,4.356e-05,70749.0,70744.0,0.07052645]
[1771141796547,4.356e-05,70749.0,70742.0,0.00022]
[1771141797312,4.356e-05,70749.0,70745.0,0.07067565]
[1771141800437,4.356e-05,70749.0,70746.0,0.07067513]
[1771141800640,0.0002918,70755.0,70748.0,0.07067337]
[1771141800844,0.0003468,70755.0,70749.0,0.07067237]
[1771141801215,0.00012,70760.0,70759.0,0.07066238]
[1771141801432,0.00012,70760.0,70757.0,0.02331061]
[1771141801625,0.00012,70760.0,70756.0,0.07066532]
[1771141801829,0.00012,70760.0,70752.0,0.02331061]
[1771141802004,0.00012,70760.0,70753.0,0.07066792]
[1771141802189,0.00012,70760.0,70752.0,0.07066878]
[1771141802392,0.00012,70760.0,70754.0,0.07066666]
[1771141802818,0.00012,70760.0,70755.0,0.07066638]
[1771141803179,0.00018121,70760.0,70755.0,0.07066638]
[1771141804508,0.00018121,70760.0,70757.0,0.07066405]
[1771141805829,0.07065467,70767.0,70753.0,0.28267307]
[1771141805830,0.00012,70770.0,70761.0,0.07066039]
[1771141808014,0.07077171,70770.0,70760.0,0.07066125]
[1771141808199,0.41988223,70770.0,70760.0,0.07066125]
[1771141808579,0.6,70772.0,70767.0,0.07065371]
[1771141808781,0.60006733,70772.0,70766.0,0.07065371]
[1771141808989,0.80438441,70780.0,70760.0,0.00012]
[1771141808990,1e-08,70779.0,70762.0,0.63730632]
[1771141809211,0.34911052,70778.0,70768.0,0.07065268]
[1771141809411,0.34911052,70778.0,70767.0,0.07065259]
[1771141809588,0.34911052,70778.0,70766.0,0.07065539]
[1771141809794,0.34911052,70778.0,70765.0,0.28262392]
[1771141810006,0.02257955,70777.0,70762.0,0.02337794]
[1771141810212,0.34911052,70776.0,70762.0,0.02337794]
[1771141810415,0.34911052,70772.0,70762.0,6.733e-05]
[1771141810641,1e-08,70779.0,70762.0,6.733e-05]
[1771141810642,0.34911052,70770.0,70763.0,0.28263357]
[1771141811041,0.37169007,70770.0,70766.0,0.0706549]
[1771141811453,0.37169007,70770.0,70767.0,0.07065414]
[1771141812235,0.37169007,70770.0,70766.0,0.07065499]
[1771141812449,0.37169007,70770.0,70767.0,0.07065404]
[1771141812769,0.37169007,70770.0,70767.0,0.07065436]
[1771141812970,0.34911052,70770.0,70767.0,0.07065436]
[1771141813771,0.34911052,70770.0,70768.0,0.07065333]
[1771141814157,0.34911052,70770.0,70766.0,0.07065499]
[1771141815075,0.34911052,70770.0,70767.0,0.07065381]
[1771141815968,0.34931052,70770.0,70767.0,0.07050302]
[1771141816158,0.34931052,70770.0,70766.0,0.07065499]
[1771141816367,0.34931052,70770.0,70765.0,0.07065454]
[1771141816890,0.41996262,70770.0,70762.0,6.733e-05]
[1771141817065,0.33939,70768.0,70762.0,6.733e-05]
[1771141817267,0.33939,70768.0,70762.0,0.07072649]
[1771141818612,0.36358938,70768.0,70758.0,0.07066246]
[1771141818818,0.07065549,70766.0,70752.0,0.33852]
[1771141818991,0.33939,70763.0,70752.0,0.62125473]
[1771141819197,0.36358938,70763.0,70752.0,0.62125473]
[1771141819409,0.36358938,70762.0,70753.0,0.07066838]
[1771141819609,0.33939,70762.0,70757.0,0.07066355]
[1771141819790,0.33939,70760.0,70754.0,0.28266953]
[1771141819983,0.33939,70766.0,70759.0,0.07066238]
[1771141820364,0.00032,70770.0,70757.0,0.02475467]
[1771141820572,0.00032,70770.0,70768.0,0.07065276]
[1771141820821,0.00032,70770.0,70767.0,0.07065276]
[1771141820992,0.00032,70770.0,70766.0,0.07065354]
[1771141821195,0.00032,70770.0,70766.0,0.09540821]
[1771141821570,0.00032,70770.0,70767.0,0.0706544]
[1771141821986,0.00032,70770.0,70768.0,0.07065313]
[1771141822403,1e-08,70779.0,70769.0,0.0706524]
[1771141822616,0.11300248,70804.0,70769.0,0.0706524]
[1771141822617,0.33939,70793.0,70781.0,0.07063944]
[1771141822843,0.29419177,70791.0,70782.0,0.07063881]
[1771141823036,0.33951,70790.0,70782.0,0.07063881]
[1771141823879,0.07063423,70788.0,70778.0,0.07064336]
[1771141824090,0.41002423,70788.0,70777.0,0.07064277]
[1771141824260,0.33939,70788.0,70774.0,0.09540108]
[1771141824506,0.00055314,70790.0,70786.0,0.07063526]
[1771141825541,0.00055314,70790.0,70784.0,0.07063705]
[1771141825542,0.36358938,70789.0,70774.0,0.33852]
[1771141825740,0.02419938,70786.0,70778.0,0.07064303]
[1771141825912,0.36358938,70785.0,70778.0,0.07064303]
[1771141826127,0.36358938,70785.0,70779.0,0.07064223]
[1771141827341,0.00055314,70790.0,70776.0,0.02475467]
[1771141827525,0.00055314,70790.0,70785.0,0.07063551]
[1771141827956,0.00055314,70790.0,70781.0,0.28256023]
[1771141828155,0.3395244,70795.0,70789.0,0.02475467]
[1771141828156,0.0001344,70795.0,70789.0,0.02475467]
[1771141828491,0.0001344,70795.0,70785.0,0.07063608]
[1771141828492,0.00026426,70795.0,70785.0,0.07063608]
[1771141828709,0.00026426,70795.0,70784.0,0.02475467]
[1771141828882,0.00026426,70795.0,70785.0,0.07063643]
[1771141829127,0.00026426,70795.0,70784.0,0.09539115]
[1771141829128,0.0002,70790.0,70784.0,0.02475467]
[1771141829310,0.41002337,70789.0,70780.0,0.00012]
[1771141829461,0.33939,70787.0,70776.0,0.33852]
[1771141829893,0.02419938,70789.0,70776.0,0.33852]
[1771141830067,0.02419938,70789.0,70778.0,0.28257168]
[1771141830271,0.00032,70790.0,70782.0,0.07063911]
[1771141830672,0.00032,70790.0,70778.0,0.30732635]
[1771141830673,0.07063467,70787.0,70777.0,0.07064416]
[1771141830865,0.07063467,70787.0,70773.0,0.02475467]
[1771141830866,0.33939,70786.0,70773.0,0.02475467]
[1771141831065,0.33939,70786.0,70778.0,0.0706432]
[1771141831274,0.33939,70786.0,70779.0,0.07064234]
[1771141831723,0.33939,70786.0,70778.0,0.07064277]
[1771141831939,0.33939,70786.0,70779.0,0.07064229]
[1771141832146,0.33939,70784.0,70775.0,0.07064641]
[1771141832350,0.36358938,70783.0,70773.0,0.07064772]
[1771141832550,0.36358938,70783.0,70777.0,0.07064411]
[1771141832751,0.36358938,70783.0,70777.0,0.07064412]
[1771141832956,0.36358938,70783.0,70778.0,0.07064278]
[1771141833203,0.36358938,70783.0,70779.0,0.07064201]
[1771141833355,0.36358938,70783.0,70776.0,0.07064493]
[1771141833556,0.36358938,70783.0,70778.0,0.07064263]
[1771141834133,0.36358938,70783.0,70779.0,0.0706423]
[1771141834287,0.02419938,70783.0,70779.0,0.0706423]
[1771141835393,0.36358938,70787.0,70779.0,0.0706423]
[1771141835792,0.36358938,70787.0,70778.0,0.07064263]
[1771141836126,0.0002,70786.0,70779.0,0.07064215]
[1771141837697,0.0002,70786.0,70778.0,0.07064328]
[1771141837836,0.0002,70786.0,70777.0,0.07064404]
[1771141837837,0.36378938,70786.0,70777.0,0.07064403]
[1771141838058,0.43442494,70786.0,70776.0,0.07064458]
[1771141838256,0.36358938,70785.0,70777.0,0.07064438]
[1771141838654,0.36358938,70785.0,70778.0,0.07064325]
[1771141838853,0.36358938,70785.0,70777.0,0.07064401]
[1771141839085,0.36358938,70785.0,70776.0,0.07064352]
[1771141839516,0.36358938,70785.0,70770.0,0.91486303]
[1771141839813,0.36358938,70785.0,70779.0,0.07064226]
[1771141842070,0.36358938,70785.0,70777.0,0.07064365]
[1771141842269,0.36358938,70785.0,70778.0,0.07064298]
[1771141843349,0.36358938,70785.0,70777.0,0.07064365]
[1771141843558,0.36358938,70785.0,70778.0,0.07064314]
[1771141843882,0.36358938,70785.0,70779.0,0.07064213]
[1771141844876,0.33939,70785.0,70770.0,0.65701607]
[1771141845085,0.40187816,70777.0,70769.0,0.0001844]
[1771141845298,0.33123374,70770.0,70764.0,0.00022]
[1771141845519,0.2937414,70775.0,70757.0,0.00022]
[1771141845520,0.33852,70774.0,70757.0,0.00022]
[1771141845738,0.33123374,70762.0,70755.0,0.0001582]
[1771141845948,0.33123374,70763.0,70755.0,0.0001582]
[1771141846153,0.31676595,70770.0,70757.0,0.28265629]
[1771141846371,0.33123374,70772.0,70765.0,0.07065621]
[1771141846616,0.07064442,70777.0,70767.0,0.07065363]
[1771141846824,0.33123374,70772.0,70763.0,0.07065776]
[1771141847064,0.35425829,70772.0,70760.0,0.36440179]
[1771141847215,0.35425829,70772.0,70765.0,0.07065578]
[1771141847612,0.33123374,70772.0,70765.0,0.07065578]
[1771141848304,0.33123374,70772.0,70763.0,0.0706574]
[1771141848479,0.33123374,70772.0,70760.0,0.2937414]
[1771141848651,0.33123374,70772.0,70764.0,0.07065706]
[1771141848852,0.4018838,70772.0,70762.0,0.07065939]
[1771141849101,0.07065264,70769.0,70760.0,0.36440244]
[1771141849306,0.33123374,70770.0,70759.0,0.09344725]
[1771141849461,0.33123374,70765.0,70755.0,0.0001582]
[1771141849664,0.2937414,70770.0,70755.0,0.0001582]
[1771141849665,0.44398601,70797.0,70766.0,0.2826176]
[1771141849886,0.44398601,70797.0,70757.0,0.00059134]
[1771141849887,0.0002,70799.0,70786.0,0.2937414]
[1771141850055,0.0002,70799.0,70793.0,0.07062766]
[1771141850259,0.0002,70799.0,70795.0,0.07062601]
[1771141850459,0.0002,70799.0,70797.0,0.07062385]
[1771141850665,0.0002,70799.0,70795.0,0.07062608]
[1771141851065,0.00032986,70799.0,70795.0,0.07062608]
[1771141851266,0.00032986,70799.0,70792.0,0.02278513]
[1771141851531,0.40185789,70798.0,70788.0,0.07063319]
[1771141851652,0.35425829,70797.0,70788.0,0.07063307]
[1771141852232,0.35425829,70797.0,70789.0,0.07063236]
[1771141852878,0.35425829,70797.0,70784.0,0.33852]
[1771141853076,0.33123374,70796.0,70788.0,0.07063261]
[1771141853938,0.33123374,70796.0,70787.0,0.07063249]
[1771141854140,0.33123374,70796.0,70789.0,0.07063177]
[1771141854468,0.33123374,70796.0,70788.0,0.07063312]
[1771141855073,0.07062651,70795.0,70785.0,0.07063584]
[1771141855227,0.07062651,70795.0,70782.0,0.36130513]
[1771141855228,0.33123374,70796.0,70782.0,0.36130513]
[1771141855429,0.00032986,70799.0,70790.0,0.07063067]
[1771141855770,0.33123374,70798.0,70790.0,0.07063067]
[1771141856180,0.33123374,70798.0,70791.0,0.07063033]
[1771141856951,0.0002,70796.0,70791.0,0.07063033]
[1771141859846,0.0002,70796.0,70790.0,0.07063115]
[1771141860279,0.0002,70796.0,70791.0,0.07063038]
[1771141860685,0.0002,70796.0,70789.0,0.07063221]
[1771141860889,0.0002,70796.0,70786.0,0.07063542]
[1771141860890,0.07062645,70795.0,70786.0,0.07063542]
[1771141861096,0.07062645,70795.0,70784.0,0.02278513]
[1771141861298,0.0706265,70795.0,70785.0,0.07063614]
[1771141861773,0.0706265,70795.0,70774.0,0.28258623]
[1771141861774,0.07063613,70786.0,70775.0,0.00022]
[1771141862008,0.33123374,70783.0,70775.0,0.00022]
[1771141862157,0.33123374,70783.0,70770.0,0.2937414]
[1771141862158,0.35425829,70781.0,70771.0,0.0706504]
[1771141862372,0.33123374,70780.0,70769.0,0.33857]
[1771141862710,0.02302455,70778.0,70769.0,5e-05]
[1771141862918,0.33123374,70775.0,70766.0,0.0003048]
[1771141863044,0.33123374,70773.0,70766.0,0.0003048]
[1771141863242,0.33123374,70773.0,70768.0,0.0706534]
[1771141863470,0.0002,70800.0,70766.0,0.0003048]
[1771141863678,0.35425829,70793.0,70780.0,0.2937414]
[1771141863879,0.35425829,70793.0,70783.0,0.07063835]
[1771141864083,0.00024984,70790.0,70783.0,0.07063835]
[1771141864913,0.00024984,70790.0,70784.0,0.07063734]
[1771141866876,0.00024984,70790.0,70783.0,0.07063835]
[1771141867089,0.00024984,70790.0,70784.0,0.07063735]
[1771141867317,0.00024984,70790.0,70783.0,0.07063826]
[1771141867700,0.00024984,70790.0,70784.0,0.07063726]
[1771141868948,0.00024984,70790.0,70782.0,0.0706375]
[1771141869328,0.00036984,70790.0,70782.0,0.0706375]
[1771141869916,0.00036984,70790.0,70781.0,0.07064029]
[1771141870086,0.07100196,70790.0,70782.0,0.07063942]
[1771141870287,0.00036984,70790.0,70782.0,0.07063942]
[1771141871316,0.33123374,70789.0,70771.0,0.02278513]
[1771141871520,0.02302455,70787.0,70778.0,0.07064274]
[1771141871682,0.33123374,70786.0,70778.0,0.07064339]
[1771141871895,0.33123374,70786.0,70779.0,0.070642]
[1771141871896,0.35425829,70786.0,70779.0,0.070642]
[1771141872214,0.35425829,70786.0,70782.0,0.00022]
[1771141872215,0.02302455,70783.0,70782.0,0.00022]
[1771141872384,0.35425829,70783.0,70778.0,0.07064327]
[1771141872584,0.35425829,70783.0,70779.0,0.07064172]
[1771141872828,0.35425829,70783.0,70780.0,0.07064093]
[1771141873001,0.33123374,70783.0,70779.0,0.07064172]
[1771141873254,0.33059543,70781.0,70778.0,0.07064147]
[1771141873451,5.5e-05,70788.0,70775.0,0.00022]
[1771141873715,5.5e-05,70788.0,70786.0,0.09420996]
[1771141874115,5.5e-05,70788.0,70787.0,0.09420987]
[1771141874318,5.5e-05,70788.0,70785.0,0.07063625]
[1771141874518,5.5e-05,70788.0,70785.0,0.02357544]
[1771141874722,5.5e-05,70788.0,70786.0,0.07063466]
[1771141875042,5.5e-05,70788.0,70787.0,0.07063443]
[1771141875241,5.5e-05,70788.0,70787.0,0.09420987]
[1771141876051,5.5e-05,70788.0,70787.0,0.02357544]
[1771141876731,5.5e-05,70788.0,70787.0,0.09420987]
[1771141876961,5.5e-05,70788.0,70787.0,0.02357544]
[1771141878135,5.5e-05,70788.0,70785.0,0.02357544]
[1771141879648,5.5e-05,70788.0,70785.0,0.09421185]
[1771141882041,5.5e-05,70788.0,70784.0,0.07063727]
[1771141882607,5.5e-05,70788.0,70780.0,0.02357544]
[1771141882786,5.5e-05,70788.0,70783.0,0.07063771]
[1771141882988,5.5e-05,70788.0,70770.0,0.66886805]
[1771141882989,5.5e-05,70788.0,70776.0,0.07064452]
[1771141883199,0.35341503,70784.0,70775.0,0.00022]
[1771141883424,5.5e-05,70789.0,70775.0,0.00022]
[1771141883425,0.09345878,70783.0,70775.0,0.00022]
[1771141883617,0.07063956,70782.0,70775.0,0.00022]
[1771141884574,0.07063873,70783.0,70775.0,0.00022]
[1771141886642,0.07064408,70778.0,70769.0,0.21765169]
[1771141886873,0.07064168,70780.0,70770.0,0.07065127]
[1771141887486,0.07064242,70779.0,70771.0,0.07065037]
[1771141887882,0.07064242,70779.0,70770.0,0.07065135]
[1771141888955,0.07064242,70779.0,70771.0,0.07065026]
[1771141889462,0.33059543,70781.0,70769.0,0.09422684]
[1771141889883,0.33059543,70781.0,70773.0,0.07064775]
[1771141890028,0.07064009,70782.0,70773.0,0.07064775]
[1771141890246,0.28252394,70791.0,70769.0,0.02357544]
[1771141890247,0.00056984,70790.0,70785.0,0.07063582]
[1771141890451,1e-08,70796.0,70795.0,0.07062645]
[1771141890650,0.01355996,70809.0,70802.0,0.07061863]
[1771141890855,0.07061414,70808.0,70802.0,0.00043314]
[1771141891112,0.01355996,70809.0,70802.0,0.0003892]
[1771141891336,0.00736697,70808.0,70804.0,0.02357544]
[1771141891528,0.01355996,70809.0,70808.0,0.02357544]
[1771141891730,0.01355996,70809.0,70808.0,0.0235315]
[1771141891952,0.01355996,70809.0,70808.0,0.02348756]
[1771141892236,0.01355996,70809.0,70806.0,0.02357544]
[1771141892382,0.01355996,70809.0,70805.0,0.07061624]
[1771141893453,0.01355996,70809.0,70803.0,0.07061779]
[1771141893622,0.01355996,70809.0,70805.0,0.07061648]
[1771141893817,0.01355996,70809.0,70806.0,0.02357544]
[1771141894003,0.01355996,70809.0,70806.0,0.0235315]
[1771141894199,0.01375996,70809.0,70806.0,0.0235315]
[1771141894426,0.01375996,70809.0,70802.0,0.0003892]
[1771141894605,0.08437324,70809.0,70802.0,0.0003892]
[1771141895029,0.07061349,70808.0,70802.0,0.0003892]
[1771141895344,0.08437266,70809.0,70802.0,0.0003892]
[1771141895697,0.01375996,70809.0,70802.0,0.0003892]
[1771141896045,0.08437261,70809.0,70802.0,0.0003892]
[1771141896249,0.01375996,70809.0,70802.0,0.0003892]
[1771141897209,0.01375996,70809.0,70802.0,0.07100854]
[1771141897610,0.01375996,70809.0,70802.0,0.0003892]
[1771141898013,0.08437263,70809.0,70802.0,0.0003892]
[1771141898253,0.01375996,70809.0,70802.0,0.07100841]
[1771141899669,0.01375996,70809.0,70806.0,0.07061504]
[1771141900136,0.01375996,70809.0,70805.0,0.07061612]
[1771141900357,0.01375996,70809.0,70806.0,0.07061509]
[1771141900497,0.01375996,70809.0,70808.0,0.07061349]
[1771141900706,0.0001974,70815.0,70808.0,0.07061349]
[1771141905054,0.0001974,70815.0,70809.0,0.07061242]
[1771141907396,0.0003974,70815.0,70802.0,0.0006092]
[1771141907571,0.0003974,70815.0,70808.0,0.02252595]
[1771141907771,0.0003974,70815.0,70812.0,0.07060914]
[1771141907958,0.0003974,70815.0,70812.0,0.0705652]
[1771141908700,0.0003974,70815.0,70810.0,0.07061085]
[1771141908701,0.0003974,70815.0,70813.0,0.07060794]
[1771141908882,0.0003974,70815.0,70812.0,0.07060942]
[1771141910473,0.0003974,70815.0,70811.0,0.07061029]
[1771141910683,0.0003974,70815.0,70809.0,0.07061149]
[1771141910910,0.0003974,70815.0,70810.0,0.07061141]
[1771141911843,0.0003974,70815.0,70811.0,0.07061036]
[1771141912548,0.0002,70815.0,70811.0,0.07061036]
[1771141912707,0.0002848,70815.0,70811.0,0.07061036]
[1771141913546,0.0002848,70815.0,70810.0,0.00012]
[1771141913727,0.0002848,70815.0,70810.0,0.07073142]
[1771141913937,0.0002848,70815.0,70800.0,0.00012]
[1771141914137,0.02421429,70811.0,70804.0,0.0706673]
[1771141914685,0.32131947,70812.0,70804.0,5e-05]
[1771141914903,0.32131947,70812.0,70806.0,0.07061472]
[1771141915818,0.32131947,70812.0,70805.0,0.07061569]
[1771141916018,0.39192964,70812.0,70804.0,0.07066746]
[1771141916511,0.32131947,70812.0,70805.0,0.07061623]
[1771141916750,0.07069299,70814.0,70806.0,0.06045323]
[1771141917111,0.32131947,70813.0,70806.0,0.06045323]
[1771141917324,0.39192828,70813.0,70805.0,0.07061639]
[1771141917509,0.0948238,70812.0,70804.0,0.07061705]
[1771141917712,0.02421429,70811.0,70802.0,0.07122787]
[1771141917911,0.32131947,70812.0,70800.0,0.63207535]
[1771141917912,0.39193374,70808.0,70800.0,0.00017]
[1771141918225,0.41658109,70808.0,70800.0,0.07079076]
[1771141918632,0.41658109,70808.0,70800.0,0.07074076]
[1771141918827,0.41658109,70808.0,70799.0,0.02251403]
[1771141919029,0.41658109,70808.0,70800.0,0.07062079]
[1771141920042,0.34596682,70808.0,70798.0,0.07062287]
[1771141920257,0.02464735,70808.0,70796.0,0.28249946]